fUSD/lending_fUSD_20260412
["ID","MTS","AMOUNT","RATE_DAILY","PERIOD"]
[420336677,1775993444373,-776.61337,0.00019178,2]
[420336678,1775993444386,-776.61337,0.00019178,2]
[420336679,1775993444403,-776.61337,0.00019178,2]
[420336680,1775993444415,-776.61337,0.00019178,2]
[420336681,1775993444426,-776.61337,0.00019178,2]
[420336682,1775993444441,-776.61337,0.00019178,2]
[420336683,1775993444453,-776.61337,0.00019178,2]
[420336684,1775993444468,-776.61337,0.00019178,2]
[420336685,1775993444478,-776.61337,0.00019178,2]
[420336686,1775993444498,-776.61337,0.00019178,2]
[420336687,1775993444514,-776.61337,0.00019178,2]
[420336688,1775993444527,-776.61337,0.00019178,2]
[420336689,1775993444542,-776.61337,0.00019178,2]
[420336690,1775993444566,-776.61337,0.00019178,2]
[420336691,1775993444582,-776.61337,0.00019178,2]
[420336692,1775993444606,-776.61337,0.00019178,2]
[420336693,1775993444620,-776.613373,0.00019178,2]
[420336694,1775993444641,-1378.27,0.000194,2]
[420336695,1775993444694,-857.683168,0.00019627,2]
[420336696,1775993444718,-175.26195521,0.00019689,7]
[420336697,1775993444742,-150.0,0.00019954,30]
[420336698,1775993444774,-150.05488972,0.00019973,2]
[420336699,1775993444785,-150.0,0.00019973,2]
[420336700,1775993444809,-2500.0,0.00019979,2]
[420336701,1775993444819,-120316.98965754,0.0001998,2]
[420336702,1775993444829,-151.0,0.0001998,2]
[420336703,1775993444869,-151.0,0.0001998,2]
[420336704,1775993444898,-151.0,0.0001998,2]
[420336705,1775993444908,-151.0,0.0001998,2]
[420336706,1775993444930,-189.729153,0.0001998,2]
[420336707,1775993444941,-189.729153,0.0001998,2]
[420336708,1775993444951,-189.729153,0.0001998,2]
[420336709,1775993444973,-189.729152,0.0001998,2]
[420336710,1775993444995,-308.292369,0.0001998,2]
[420336711,1775993445005,-308.292369,0.0001998,2]
[420336712,1775993445015,-308.292369,0.0001998,2]
[420336713,1775993445031,-308.292364,0.0001998,2]
[420336714,1775993445041,-151.0,0.0001998,2]
[420336715,1775993445051,-227.119664,0.0001998,2]
[420336716,1775993445063,-169.932881,0.0001998,2]
[420336717,1775993445078,-169.932881,0.0001998,2]
[420336718,1775993445088,-169.932881,0.0001998,2]
[420336719,1775993445098,-169.932878,0.0001998,2]
[420336720,1775993445112,-534.203995,0.0001998,2]
[420336721,1775993445122,-534.203995,0.0001998,2]
[420336722,1775993445525,-534.203995,0.0001998,2]
[420336723,1775993445536,-534.203996,0.0001998,2]
[420336724,1775993445546,-151.0,0.0001998,2]
[420336725,1775993445560,-151.0,0.0001998,2]
[420336726,1775993445578,-194.385104,0.0001998,2]
[420336727,1775993445587,-217.82693911,0.0002,30]
[420336728,1775993445611,-600.0,0.0002,2]
[420336729,1775993445627,-600.0,0.0002,2]
[420336730,1775993445636,-260.0,0.0002,2]
[420336731,1775993445647,-1545.84793221,0.0002,2]
[420336732,1775993445665,-1482.305495,0.0002,5]
[420336733,1775993445674,-2464.68,0.0002,2]
[420336734,1775993445694,-1305.0388389,0.0002,2]
[420336735,1775993445704,-200.0,0.0002,2]
[420336736,1775993445720,-1053.49201246,0.0002,2]
[420336737,1775993445730,-2886.9187812,0.0002,2]
[420336738,1775993445754,-152.0,0.0002,2]
[420336740,1775993445764,-2000.0,0.0002,2]
[420336743,1775993445773,-192.44,0.0002,2]
[420336745,1775993445785,-2058.0,0.0002,2]
[420336747,1775993445795,-200.0,0.0002,2]
[420336749,1775993445806,-825.0,0.0002,30]
[420336751,1775993445815,-2000.0,0.0002001,2]
[420336753,1775993445825,-2000.0,0.0002002,2]
[420336754,1775993445836,-2796.811928,0.0002003,2]
[420336755,1775993445845,-1600.0,0.00020031,2]
[420336756,1775993445855,-1052.22,0.00020054,2]
[420336757,1775993445865,-2000.0,0.000201,2]
[420336758,1775993445877,-291.9037,0.000201,2]
[420336759,1775993445886,-395.62,0.00020128,2]
[420336760,1775993445900,-525.0,0.00020148,2]
[420336761,1775993445914,-237.0,0.00020148,2]
[420336762,1775993445923,-476.0,0.00020148,2]
[420336763,1775993445935,-263.0,0.00020148,2]
[420336764,1775993445951,-446.0,0.00020148,2]
[420336765,1775993445962,-637.0,0.00020148,2]
[420336766,1775993445975,-591.0,0.00020148,2]
[420336767,1775993445993,-553.0,0.00020148,2]
[420336768,1775993446002,-3376.3087434,0.00020226,2]
[420336769,1775993446019,-2000.0,0.00020385,2]
[420336770,1775993446032,-155.54311712,0.00020443,2]
[420336771,1775993446047,-250.0,0.00020521,2]
[420336772,1775993446071,-329.7,0.00020591,2]
[420336773,1775993446082,-156.59,0.00020694,2]
[420336774,1775993446094,-551.0,0.00020823,2]
[420336775,1775993446117,-581.93,0.00020823,2]
[420336776,1775993446130,-1203.01571186,0.00021,2]
[420336777,1775993446143,-198.55046177,0.00021,2]
[420336778,1775993446162,-3396.05559469,0.00021,7]
[420336779,1775993446175,-450.0,0.00021,2]
[420336780,1775993446188,-175.26195521,0.00021012,9]
[420336781,1775993446211,-404.42676648,0.0002106,2]
[420336782,1775993446222,-350.0,0.00021068,2]
[420336783,1775993446238,-525.0,0.00021148,2]
[420336784,1775993446260,-237.0,0.00021148,2]
[420336785,1775993446287,-476.0,0.00021148,2]
[420336786,1775993446305,-263.0,0.00021148,2]
[420336787,1775993446346,-446.0,0.00021148,2]
[420336788,1775993446374,-637.0,0.00021148,2]
[420336789,1775993446393,-591.0,0.00021148,2]
[420336790,1775993446420,-553.0,0.00021148,2]
[420336791,1775993446442,-288.04,0.00021172,30]
[420336792,1775993446477,-333.4796,0.000213,2]
[420336794,1775993446527,-4610.72410341,0.00021337,2]
[420336796,1775993446543,-1015.08,0.00021369,2]
[420336798,1775993446561,-534.47,0.00021448,2]
[420336800,1775993446574,-564.48,0.00021448,2]
[420336801,1775993446589,-1218.0,0.00021488,2]
[420336802,1775993446606,-926.0,0.00021488,2]
[420336803,1775993446618,-224.01989041,0.000215,2]
[420336804,1775993446630,-231.124421,0.00021563,2]
[420336805,1775993446647,-1077.618471,0.00021563,2]
[420336806,1775993446659,-579.385567,0.00021563,2]
[420336807,1775993446669,-496.459402,0.00021563,7]
[420336808,1775993446684,-450.0,0.00021616,2]
[420336809,1775993446700,-500.0,0.00021644,2]
[420336810,1775993446711,-648.62826,0.00021662,7]
[420336811,1775993446721,-1600.0,0.00021852,2]
[420336812,1775993446748,-1611.04032496,0.0002189,2]
[420336813,1775993446758,-1000.19,0.00021918,2]
[420336814,1775993446768,-3061.46,0.00021918,2]
[420336815,1775993446790,-151.0,0.00021918,2]
[420336816,1775993446804,-151.0,0.00021918,2]
[420336817,1775993446814,-151.0,0.00021918,2]
[420336818,1775993446836,-151.0,0.00021918,2]
[420336819,1775993446847,-151.0,0.00021918,2]
[420336820,1775993446857,-151.0,0.00021918,2]
[420336821,1775993446873,-151.0,0.00021918,2]
[420336822,1775993446891,-151.0,0.00021918,2]
[420336823,1775993446901,-158.638869,0.00021918,2]
[420336824,1775993446914,-5000.0,0.00021918,2]
[420336825,1775993446938,-164.92,0.00022,2]
[420336826,1775993446951,-160.0,0.00022,2]
[420336827,1775993446965,-498.79642109,0.000221,2]
[420336828,1775993446978,-242.40382843,0.0002211,2]
[420336829,1775993446987,-540.46541755,0.00022148,2]
[420336830,1775993446997,-250.0,0.00022148,2]
[420336831,1775993447006,-487.0,0.00022148,2]
[420336832,1775993447018,-270.0,0.00022148,2]
[420336833,1775993447032,-457.35725012,0.00022148,2]
[420336834,1775993447042,-638.0,0.00022148,2]
[420336835,1775993447054,-608.0,0.00022148,2]
[420336836,1775993447065,-570.0,0.00022148,2]
[420336837,1775993447075,-550.0,0.00022164,2]
[420336838,1775993447085,-571.788779,0.00022187,14]
[420336839,1775993447095,-3238.63,0.00022222,7]
[420336840,1775993447108,-2000.0,0.00022238,2]
[420336841,1775993447118,-825.0,0.00022334,30]
[420336842,1775993447131,-175.26195521,0.00022336,11]
[420336843,1775993447140,-432.06,0.0002239,30]
[420336844,1775993447150,-380.9772,0.000224,2]
[420336845,1775993447162,-250.0,0.00022466,2]
[420336846,1775993447174,-527.97969457,0.0002271,2]
[420336847,1775993447190,-650.0,0.00022712,2]
[420336848,1775993447203,-500.0,0.00023,2]
[420336849,1775993447212,-977.95,0.00023013,7]
[420336850,1775993447221,-350.0,0.00023014,2]
[420336851,1775993447241,-3376.3087434,0.00023037,2]
[420336852,1775993447254,-1196.445108,0.00023099,14]
[420336853,1775993447263,-156.59,0.00023112,2]
[420336854,1775993447277,-1181.93915928,0.000232,2]
[420336855,1775993447294,-500.0,0.0002321,2]
[420336856,1775993447303,-750.0,0.0002326,2]
[420336857,1775993447316,-514.0,0.000234,15]
[420336858,1775993447335,-609.09,0.000234,15]
[420336859,1775993447345,-500.0,0.00023425,2]
[420336860,1775993447358,-3235.741901,0.00023515,14]
[420336861,1775993447375,-1461.584127,0.00023515,14]
[420336862,1775993447386,-938.319318,0.00023515,14]
[420336863,1775993447398,-450.0,0.00023562,2]
[420336864,1775993447416,-435.2399,0.000236,2]
[420336865,1775993447426,-5802.0,0.000236,2]
[420336866,1775993447446,-576.08,0.00023608,30]
[420336867,1775993447455,-175.26195521,0.00023659,12]
[420336868,1775993447465,-2000.0,0.000238,2]
[420336869,1775993447477,-850.0,0.00023808,2]
[420336870,1775993447487,-1378.27,0.00023838,2]
[420336871,1775993447496,-600.0,0.00024,2]
[420336872,1775993447505,-2412.0462638,0.00024,2]
[420336873,1775993447516,-1031.68543578,0.00024,2]
[420336874,1775993447525,-1247.35574533,0.00024,2]
[420336875,1775993447535,-526.0,0.00024,5]
[420336876,1775993447545,-5532.0,0.00024,3]
[420336877,1775993447558,-4610.72410341,0.00024055,2]
[420336878,1775993447569,-550.0,0.0002411,2]
[420336879,1775993447579,-184.66,0.00024164,7]
[420336880,1775993447589,-150.99,0.00024174,2]
[420336881,1775993447609,-299.99,0.00024174,7]
[420336882,1775993447619,-999.99,0.00024174,2]
[420336883,1775993447628,-3684.53,0.00024174,2]
[420336884,1775993447656,-150.99,0.00024174,2]
[420336885,1775993447665,-950.0,0.00024356,2]
[420336886,1775993447680,-5532.0,0.000244,5]
[420336887,1775993447698,-1218.0,0.00024488,2]
[420336888,1775993447708,-479.72338521,0.0002463,2]
[420336889,1775993447723,-174.0,0.0002463,60]
[420336890,1775993447739,-169.90438942,0.0002465,2]
[420336891,1775993447750,-650.0,0.00024658,2]
[420336892,1775993447767,-1000.0,0.00024658,2]
[420336893,1775993447777,-352.5,0.00024658,2]
[420336894,1775993447790,-151.0,0.00024658,2]
[420336895,1775993447799,-151.0,0.00024658,2]
[420336896,1775993447821,-151.0,0.00024658,2]
[420336897,1775993447834,-151.0,0.00024658,2]
[420336898,1775993447844,-171.649957,0.00024658,2]
[420336899,1775993447859,-245.286642,0.00024658,2]
[420336900,1775993447882,-245.286642,0.00024658,2]
[420336901,1775993447891,-245.286642,0.00024658,2]
[420336902,1775993447903,-245.286642,0.00024658,2]
[420336903,1775993447914,-245.286642,0.00024658,2]
[420336904,1775993447931,-245.286642,0.00024658,2]
[420336905,1775993447942,-245.286642,0.00024658,2]
[420336906,1775993447956,-245.286642,0.00024658,2]
[420336907,1775993447969,-245.286642,0.00024658,2]
[420336908,1775993447979,-245.286642,0.00024658,2]
[420336909,1775993447988,-245.286642,0.00024658,2]
[420336910,1775993448007,-245.286642,0.00024658,2]
[420336911,1775993448016,-245.286642,0.00024658,2]
[420336912,1775993448037,-245.286642,0.00024658,2]
[420336913,1775993448047,-245.286642,0.00024658,2]
[420336914,1775993448056,-245.286642,0.00024658,2]
[420336915,1775993448072,-245.286642,0.00024658,2]
[420336916,1775993448082,-245.286642,0.00024658,2]
[420336917,1775993448091,-245.286642,0.00024658,2]
[420336918,1775993448101,-245.286645,0.00024658,2]
[420336919,1775993448114,-239.62423106,0.00024658,2]
[420336920,1775993448123,-437.156281,0.00024658,2]
[420336921,1775993448133,-437.156281,0.00024658,2]
[420336922,1775993448142,-437.156281,0.00024658,2]
[420336923,1775993448153,-437.156281,0.00024658,2]
[420336924,1775993448162,-437.156281,0.00024658,2]
[420336925,1775993448171,-437.156281,0.00024658,2]
[420336926,1775993448182,-437.156281,0.00024658,2]
[420336927,1775993448193,-437.156281,0.00024658,2]
[420336928,1775993448203,-437.156281,0.00024658,2]
[420336929,1775993448212,-437.156281,0.00024658,2]
[420336930,1775993448223,-437.156281,0.00024658,2]
[420336931,1775993448236,-437.156281,0.00024658,2]
[420336932,1775993448246,-437.156281,0.00024658,2]
[420336933,1775993448255,-437.156281,0.00024658,2]
[420336934,1775993448266,-437.156281,0.00024658,2]
[420336935,1775993448277,-437.156281,0.00024658,2]
[420336936,1775993448287,-437.156281,0.00024658,2]
[420336937,1775993448297,-437.156281,0.00024658,2]
[420336938,1775993448320,-437.156281,0.00024658,2]
[420336939,1775993448329,-437.156285,0.00024658,2]
[420336940,1775993448341,-267.0,0.00024668,60]
[420336941,1775993448360,-282.0,0.00024668,60]
[420336942,1775993448369,-150.0,0.00024668,60]
[420336943,1775993448385,-186.0,0.00024668,60]
[420336944,1775993448408,-157.0,0.00024668,60]
[420336945,1775993448418,-186.0,0.00024668,60]
[420336946,1775993448443,-169.0,0.00024668,60]
[420336947,1775993448453,-184.0,0.00024668,60]
[420336948,1775993448462,-151.0,0.00024668,60]
[420336949,1775993448478,-150.0,0.00024668,60]
[420336950,1775993448496,-245.0,0.00024668,60]
[420336951,1775993448506,-248.0,0.00024668,60]
[420336952,1775993448519,-243.0,0.00024668,60]
[420336953,1775993448534,-155.0,0.00024668,60]
[420336954,1775993448546,-238.0,0.00024668,60]
[420336955,1775993448557,-296.0,0.00024668,60]
[420336956,1775993448567,-497.2312,0.000247,2]
[420336957,1775993448580,-720.1,0.00024826,30]
[420336958,1775993448590,-615.781983,0.0002488,14]
[420336959,1775993448603,-331.077467,0.0002488,14]
[420336960,1775993448613,-189.127391,0.0002488,14]
[420336961,1775993448629,-500.0,0.00024899,2]
[420336962,1775993448639,-557.37155943,0.00024899,2]
[420336963,1775993448650,-2500.0,0.00024899,2]
[420336964,1775993448671,-69019.7543162,0.000249,2]
[420336965,1775993448682,-271.95882012,0.000249,2]
[420336966,1775993448693,-1050.0,0.00024904,2]
[420336967,1775993448715,-150.0,0.00024973,2]
[420336968,1775993448732,-175.26195521,0.00024982,14]
[420336969,1775993448749,-155.54311712,0.00024986,2]
[420336970,1775993448763,-247.09648,0.00024994,14]
[420336971,1775993448777,-79657.04492211,0.00025,2]
[420336972,1775993448911,-1123.00105018,0.00025,2]
[420336973,1775993448923,-209.18145186,0.00025,2]
[420336974,1775993448944,-1799.4168248,0.00025,2]
[420336975,1775993448955,-2000.0,0.00025,2]
[420336976,1775993448978,-540.0,0.00025,2]
[420336977,1775993448988,-615.74098808,0.00025,2]
[420336979,1775993448998,-3068.19966975,0.00025,2]
[420336981,1775993449043,-2217.90120602,0.00025,2]
[420336983,1775993449067,-168.6473983,0.00025,2]
[420336986,1775993449108,-622.69553343,0.00025,5]
[420336987,1775993449131,-150.0,0.00025,2]
[420336989,1775993449154,-2986.29769832,0.00025429,2]
[420336992,1775993449181,-1170.77141632,0.00025429,2]
[420336995,1775993449201,-1046.09293704,0.00025452,2]
[420336996,1775993449239,-940.81,0.00025479,7]
[420336997,1775993449251,-250.0,0.00025521,2]
[420336998,1775993449285,-150.0,0.00025529,2]
[420336999,1775993449298,-150.0,0.00025529,2]
[420337000,1775993449322,-150.0,0.00025529,2]
[420337001,1775993449340,-156.59,0.00025529,2]
[420337002,1775993449353,-251.0,0.00025529,2]
[420337003,1775993449380,-150.0,0.00025529,2]
[420337004,1775993449390,-150.0,0.00025529,2]
[420337005,1775993449399,-151.0,0.00025529,2]
[420337006,1775993449421,-150.0,0.00025529,2]
[420337007,1775993449432,-150.0,0.00025529,2]
[420337008,1775993449442,-150.0,0.00025529,2]
[420337009,1775993449461,-150.0,0.00025529,2]
[420337010,1775993449470,-150.0,0.00025529,2]
[420337011,1775993449481,-173.0,0.00025529,2]
[420337012,1775993449498,-279.0,0.00025529,2]
[420337013,1775993449510,-326.736445,0.00025601,14]
[420337014,1775993449521,-205.81,0.00025816,2]
[420337015,1775993449534,-421.05216444,0.00025825,2]
[420337016,1775993449550,-421.04,0.00025825,2]
[420337017,1775993449560,-257.79,0.00025825,2]
[420337018,1775993449573,-3376.3087434,0.00025847,2]
[420337019,1775993449590,-250.0,0.00025852,7]
[420337020,1775993449603,-199.66701124,0.00025868,2]
[420337021,1775993449613,-1574.0,0.000259,3]
[420337022,1775993449622,-568.0519,0.000259,2]
[420337023,1775993449639,-269.0,0.00025968,60]
[420337024,1775993449653,-150.0,0.00025968,60]
[420337025,1775993449666,-191.0,0.00025968,60]
[420337026,1775993449680,-200.0,0.00025968,60]
[420337027,1775993449693,-193.0,0.00025968,60]
[420337028,1775993449706,-241.0,0.00025968,60]
[420337029,1775993449721,-170.0,0.00025968,60]
[420337030,1775993449733,-175.0,0.00025968,60]
[420337031,1775993449743,-197.0,0.00025968,60]
[420337032,1775993449761,-208.0,0.00025968,60]
[420337033,1775993449770,-161.0,0.00025968,60]
[420337034,1775993449780,-225.0,0.00025968,60]
[420337035,1775993449795,-192.0,0.00025968,60]
[420337036,1775993449808,-297.0,0.00025968,60]
[420337037,1775993449821,-224.0,0.00025968,60]
[420337038,1775993449830,-249.0,0.00025968,60]
[420337039,1775993449851,-281.0,0.00025968,60]
[420337040,1775993449869,-246.0,0.00025968,60]
[420337041,1775993449887,-257.0,0.00025968,60]
[420337042,1775993449901,-245.0,0.00025968,60]
[420337043,1775993449918,-605.60127404,0.0002599,2]
[420337044,1775993449940,-218.18042302,0.00026,2]
[420337045,1775993449962,-500.0,0.00026027,2]
[420337046,1775993449977,-864.12,0.00026043,30]
[420337047,1775993449995,-325.0,0.00026068,2]
[420337048,1775993450010,-262.0,0.00026068,2]
[420337049,1775993450025,-350.0,0.00026068,2]
[420337050,1775993450051,-514.0,0.000261,20]
[420337051,1775993450061,-609.09,0.000261,20]
[420337052,1775993450071,-404.42676648,0.0002622,2]
[420337053,1775993450096,-1209.39420038,0.000263,2]
[420337054,1775993450105,-950.0,0.00026301,2]
[420337055,1775993450114,-266.0,0.00026301,2]
[420337056,1775993450127,-175.26195521,0.00026305,16]
[420337057,1775993450143,-150.0,0.0002644,2]
[420337058,1775993450152,-162.0,0.0002654,3]
[420337059,1775993450161,-1146.59,0.00026555,2]
[420337060,1775993450171,-450.0,0.00026616,2]
[420337061,1775993450185,-180.18560908,0.00026734,2]
[420337062,1775993450194,-4610.72410341,0.00026773,2]
[420337063,1775993450203,-1050.0,0.00026849,2]
[420337064,1775993450214,-1574.0,0.0002686,3]
[420337065,1775993450223,-250.0,0.00027,2]
[420337066,1775993450232,-1043.14197438,0.00027,2]
[420337067,1775993450241,-530.0,0.00027,2]
[420337068,1775993450250,-2000.0,0.00027,2]
[420337069,1775993450262,-500.0,0.00027,5]
[420337070,1775993450273,-648.9597,0.00027,2]
[420337071,1775993450282,-202.0,0.00027001,60]
[420337072,1775993450295,-288.0,0.00027001,60]
[420337073,1775993450305,-187.0,0.00027001,60]
[420337074,1775993450314,-271.0,0.00027002,60]
[420337075,1775993450324,-150.0,0.00027002,60]
[420337076,1775993450341,-157.0,0.00027002,60]
[420337077,1775993450350,-214.0,0.00027003,60]
[420337078,1775993450359,-207.0,0.00027003,60]
[420337079,1775993450374,-173.0,0.00027003,60]
[420337080,1775993450384,-2540.290027,0.0002701,2]
[420337081,1775993450393,-257.79080241,0.00027116,2]
[420337082,1775993450406,-276.92800751,0.00027123,2]
[420337083,1775993450418,-276.0,0.00027123,2]
[420337084,1775993450428,-315.88234363,0.00027123,2]
[420337085,1775993450437,-556.793953,0.00027132,14]
[420337086,1775993450449,-357.454978,0.00027132,14]
[420337087,1775993450462,-509.0,0.00027137,2]
[420337088,1775993450471,-550.0,0.00027164,2]
[420337089,1775993450480,-162.0,0.0002718,3]
[420337090,1775993450493,-1008.14,0.00027261,30]
[420337091,1775993450506,-275.0,0.00027391,2]
[420337092,1775993450515,-2500.0,0.00027396,2]
[420337093,1775993450525,-157.2031892,0.00027397,2]
[420337094,1775993450537,-619.54599362,0.00027397,2]
[420337095,1775993450547,-500.0,0.00027397,2]
[420337096,1775993450557,-500.0,0.00027397,2]
[420337097,1775993450568,-500.0,0.00027397,2]
[420337098,1775993450579,-380.6816339,0.00027397,2]
[420337099,1775993450588,-2000.0,0.00027397,2]
[420337100,1775993450600,-500.0,0.00027397,2]
[420337101,1775993450610,-500.0,0.00027397,2]
[420337102,1775993450619,-1150.0,0.00027397,5]
[420337103,1775993450631,-524.05,0.00027397,2]
[420337104,1775993450641,-300.0,0.00027397,2]
[420337105,1775993450651,-1458.88,0.00027397,2]
[420337106,1775993450659,-352.5,0.00027397,2]
[420337107,1775993450669,-2419.423802,0.00027397,2]
[420337108,1775993450682,-2419.423802,0.00027397,2]
[420337109,1775993450694,-2419.423802,0.00027397,2]
[420337110,1775993450703,-2419.423802,0.00027397,2]
[420337111,1775993450712,-2419.423802,0.00027397,2]
[420337112,1775993450728,-2419.423802,0.00027397,2]
[420337113,1775993450738,-2419.423802,0.00027397,2]
[420337114,1775993450747,-2419.423802,0.00027397,2]
[420337115,1775993450756,-2419.423802,0.00027397,2]
[420337116,1775993450774,-2419.423802,0.00027397,2]
[420337117,1775993450786,-2419.423802,0.00027397,2]
[420337118,1775993450795,-2419.423802,0.00027397,2]
[420337119,1775993450806,-2419.423802,0.00027397,2]
[420337120,1775993450823,-2419.423802,0.00027397,2]
[420337121,1775993450832,-2419.423802,0.00027397,2]
[420337122,1775993450842,-2419.423802,0.00027397,2]
[420337123,1775993450857,-2419.423802,0.00027397,2]
[420337124,1775993450869,-2419.423802,0.00027397,2]
[420337125,1775993450878,-2419.423802,0.00027397,2]
[420337126,1775993450887,-2419.423798,0.00027397,2]
[420337127,1775993450904,-200.0,0.00027397,2]
[420337128,1775993450919,-200.0,0.00027397,2]
[420337129,1775993450929,-200.0,0.00027397,2]
[420337130,1775993450948,-200.0,0.00027397,2]
[420337131,1775993450958,-200.0,0.00027397,2]
[420337132,1775993450981,-200.0,0.00027397,2]
[420337133,1775993450992,-200.0,0.00027397,2]
[420337134,1775993451010,-200.0,0.00027397,2]
[420337135,1775993451027,-200.0,0.00027397,2]
[420337136,1775993451037,-200.0,0.00027397,2]
[420337137,1775993451062,-200.0,0.00027397,2]
[420337138,1775993451071,-200.0,0.00027397,2]
[420337139,1775993451081,-200.0,0.00027397,2]
[420337140,1775993451108,-200.0,0.00027397,2]
[420337141,1775993451119,-200.0,0.00027397,2]
[420337142,1775993451133,-200.0,0.00027397,2]
[420337143,1775993451157,-200.0,0.00027397,2]
[420337144,1775993451168,-200.0,0.00027397,2]
[420337145,1775993451190,-200.0,0.00027397,2]
[420337146,1775993451206,-200.0,0.00027397,2]
[420337147,1775993451216,-200.0,0.00027397,2]
[420337148,1775993451229,-200.0,0.00027397,2]
[420337149,1775993451249,-200.0,0.00027397,2]
[420337150,1775993451259,-200.0,0.00027397,2]
[420337151,1775993451291,-200.0,0.00027397,2]
[420337152,1775993451300,-200.0,0.00027397,2]
[420337153,1775993451314,-200.0,0.00027397,2]
[420337154,1775993451330,-200.0,0.00027397,2]
[420337155,1775993451342,-200.0,0.00027397,2]
[420337156,1775993451352,-200.0,0.00027397,2]
[420337157,1775993451362,-200.0,0.00027397,2]
[420337158,1775993451370,-200.0,0.00027397,2]
[420337159,1775993451383,-200.0,0.00027397,2]
[420337160,1775993451392,-200.0,0.00027397,2]
[420337161,1775993451403,-200.0,0.00027397,2]
[420337162,1775993451411,-200.0,0.00027397,2]
[420337163,1775993451423,-200.0,0.00027397,2]
[420337164,1775993451434,-200.0,0.00027397,2]
[420337165,1775993451445,-200.0,0.00027397,2]
[420337166,1775993451454,-200.0,0.00027397,2]
[420337167,1775993451470,-200.0,0.00027397,2]
[420337168,1775993451481,-200.0,0.00027397,2]
[420337169,1775993451491,-200.0,0.00027397,2]
[420337170,1775993451502,-200.0,0.00027397,2]
[420337171,1775993451521,-200.0,0.00027397,2]
[420337172,1775993451531,-200.0,0.00027397,2]
[420337173,1775993451543,-200.0,0.00027397,2]
[420337174,1775993451559,-200.0,0.00027397,2]
[420337175,1775993451572,-200.0,0.00027397,2]
[420337176,1775993451582,-200.0,0.00027397,2]
[420337177,1775993451593,-200.0,0.00027397,2]
[420337178,1775993451607,-200.0,0.00027397,2]
[420337179,1775993451623,-200.0,0.00027397,2]
[420337180,1775993451633,-200.0,0.00027397,2]
[420337181,1775993451653,-200.0,0.00027397,2]
[420337182,1775993451666,-200.0,0.00027397,2]
[420337183,1775993451676,-200.0,0.00027397,2]
[420337184,1775993451687,-200.0,0.00027397,2]
[420337185,1775993451711,-200.0,0.00027397,2]
[420337186,1775993451720,-200.0,0.00027397,2]
[420337187,1775993451731,-200.0,0.00027397,2]
[420337188,1775993451750,-200.0,0.00027397,2]
[420337189,1775993451760,-200.0,0.00027397,2]
[420337190,1775993451771,-200.0,0.00027397,2]
[420337191,1775993451785,-200.0,0.00027397,2]
[420337192,1775993451794,-200.0,0.00027397,2]
[420337193,1775993451804,-200.0,0.00027397,2]
[420337194,1775993451814,-200.0,0.00027397,2]
[420337195,1775993451827,-200.0,0.00027397,2]
[420337196,1775993451837,-200.0,0.00027397,2]
[420337197,1775993451846,-200.0,0.00027397,2]
[420337198,1775993451855,-200.0,0.00027397,2]